[Event "88th Tata Steel Masters 2026"]
[White "Abdusattorov,Nodirbek"]
[Black "Giri,Anish"]
[Site "Wijk aan Zee"]
[Round "8.5"]
[Annotator "TA"]
[Result "0-1"]
[Date "2026.01.25"]
[WhiteElo "2751"]
[BlackElo "2760"]
[PlyCount "102"]
[TimeControl "60"]

{[%evp 9,101,15,22,8,17,0,0,0,0,0,0,0,0,0,0,-7,0,0,0,0,0,0,0,0,0,0,17,14,27,8,17,-45,-47,-107,-14,-45,-29,-127,-147,-137,-125,-122,-113,-141,-89,-87,-84,-86,-79,-78,-85,-112,-88,-265,-285,-253,-261,-280,-244,-224,-245,-254,-250,-242,-214,-223,-218,-278,-270,-251,-307,-275,-289,-321,-308,-306,-80,-92,-72,-114,-75,-164,-170,-297,-308,-516,-522,-586,-588,-586,-565,-558,-519,-504]} 1. d4 {[%emt 0:0:0]} Nf6 {[%emt 0:0:0]} 2. c4 {[%emt 0:0:0]} e6 {[%emt 0:0:0]} 3. Nc3 {[%emt 0:0:0]} Bb4 {[%emt 0:0:0]} 4. Nf3 {[%emt 0:0:0]} d5 {[%emt 0:0:0]} 5. cxd5 {[%emt 0:0:0]} exd5 {[%emt 0:0:0]} 6. Bf4 {[%emt 0:0:0] D38: Queen's Gambit Declined: Ragozin Defence (4 Nf3 Bb4).} Ne4 {[%emt 0:0:0]} 7. Rc1 {[%emt 0:0:0]} Nc6 {[%emt 0:0:0]} 8. Nd2 {[%emt 0:0:0] The position is equal.} g5 {[%emt 0:0:0]} 9. Be3 {[%emt 0:0:0]} Nxc3 {[%emt 0:0:0]} 10. bxc3 {[%emt 0:0:0]} Ba3 {[%emt 0:0:0]} 11. Rb1 {[%emt 0:0:0][%cal Yh2h4]} f5 $1 {[%emt 0:0:0][%cal Yf7f5,Yf5f4][%mdl 32]} 12. g3 {[%emt 0:0:0] Hoping for h4.} Bd6 {[%emt 0:0:0]} 13. Nf3 {[%emt 0:0:0]} f4 {[%emt 0:0:0]} 14. Bc1 {[%emt 0:0:0]} O-O {[%emt 0:4:20]} 15. Rb5 {[%emt 0:0:0]} g4 {[%emt 0:14:37]} 16. Nh4 {[%emt 0:0:0]} Ne7 {[%emt 0:7:4]} 17. e3 {[%emt 0:1:34]} c6 {[%emt 0:13:28]} 18. Rb2 $146 {[%emt 0:3:23]} ({Predecessor:} 18. Rb3 f3 19. Bd3 Ng6 20. Nxg6 hxg6 21. Qc2 Qe7 22. Bxg6 b5 23. Kd1 Kg7 24. Bd3 {0-1 Martirosyan,H (2624)-Volokitin,A (2656) EU-chT 23rd Terme Catez 2021 (9.2)} )f3 {[%emt 0:3:25]} 19. h3 {[%emt 0:5:24]} b5 {[%emt 0:3:37]} 20. Qd3 {[%emt 0:18:36]} (20. hxg4 $11 Bxg4 21. Qc2 )Rf7 $36 {[%emt 0:3:5][%mdl 2048] Black has some pressure.} 21. Kd1 {[%emt 0:2:13]} (21. Qd1 $15 )Rb8 {[%emt 0:12:42]} (21... gxh3 $17 22. Kc2 Ba3 )22. hxg4 $11 {[%emt 0:24:12]} Bxg4 {[%emt 0:0:42]} 23. Bh3 {[%emt 0:0:36]} (23. Qb1 $11 {remains equal.} )Bxh3 $17 {[%emt 0:2:24]} 24. Rxh3 {[%emt 0:0:43][%cal Yh4f3]} Qd7 {[%emt 0:0:36]} 25. Rh1 {[%emt 0:0:52]} Qg4 {[%emt 0:2:20]} 26. Kc2 {[%emt 0:2:18] White is weak on the light squares} Ba3 {[%emt 0:6:16]} ({Better is} 26... Rbf8 27. Kb1 Bxg3 28. Nxf3 (28. fxg3 $2 f2 $19 )Qxf3 )27. Rb3 {[%emt 0:7:42] [#]} Bxc1 {[%emt 0:0:38]} 28. Kxc1 {[%emt 0:0:50]} Nc8 {[%emt 0:0:41]} 29. Qf1 {[%emt 0:0:35]} Kg7 {[%emt 0:2:29] Black has more active pieces.} 30. Qd1 {[%emt 0:12:12]} (30. Qh3 $2 h5 31. Qf1 Nd6 $19 )h5 {[%emt 0:2:12]} 31. e4 $2 {[%emt 0:0:34] Black has space advantage and is better} dxe4 $19 {[%emt 0:1:24]} 32. d5 {[%emt 0:1:41]} Qg5+ {[%emt 0:1:28]} 33. Kb1 {[%emt 0:0:44]} Qxd5 {[%emt 0:1:42]} 34. c4 {[%emt 0:1:42]} Qxd1+ {[%emt 0:2:5]} 35. Rxd1 {[%emt 0:0:31]} Nb6 {[%emt 0:9:12]} 36. cxb5 {[%emt 0:0:37]} Na4 {[%emt 0:2:20]} 37. Rd4 {[%emt 0:23:34]} Nc5 {[%emt 0:3:39]} 38. Rc3 {[%emt 0:0:32]} Rxb5+ {[%emt 0:0:58]} 39. Kc2 {[%emt 0:0:33]} Rfb7 {[%emt 0:2:31]} 40. Rcc4 {[%emt 0:0:0]} Kf6 {[%emt 0:0:0] Dodges Nf5} 41. Kc3 {[%emt 0:32:54]} Rb1 {[%emt 0:29:51]} 42. Rd2 {[%emt 0:2:20]} Rc1+ $2 {[%emt 0:12:11]} (42... R7b5 $19 43. Kd4 a5 )43. Rc2 $17 {[%emt 0:0:5]} Rxc2+ {[%emt 0:0:34]} 44. Kxc2 {[%emt 0:0:1][%mdl 4096] Endgame KRN-KRN. Black is two pawns up.} Rb5 {[%emt 0:0:50]} 45. Kc3 {[%emt 0:2:56]} (45. a4 $17 Ra5 46. Kd2 )Ke5 $19 {[%emt 0:1:58]} 46. Ng6+ {[%emt 0:0:41]} (46. a4 {was necessary.} Ra5 (46... Rb3+ 47. Kc2 $11 )47. Ng6+ Kf6 48. Nh4 )Kd6 {[%emt 0:0:16]} 47. Kd4 $2 {[%emt 0:2:58]} (47. Nh4 e3 48. Nf5+ Ke5 49. Nxe3 Ne4+ 50. Kc2 )Rb2 {[%emt 0:4:11][%csl Ya2,Yf2] [#] and ...Rd2+ should not be overlooked. Black is clearly winning.} 48. Rxc5 {[%emt 0:9:50]} Rb4+ {[%emt 0:2:31]} 49. Rc4 {[%emt 0:0:2]} c5+ {[%emt 0:1:22]} 50. Kc3 {[%emt 0:0:1]} e3 {[%emt 0:1:39]} 51. Rh4 {[%emt 0:0:5]} Rb1 {[%emt 0:2:16] Weighted Error Value: White=0.26 (precise) /Black=0.27 (precise)  Prevents Rh1.  Loses game:     	White=1     	---        Missed win:     	---       	Black=2      Mistake:       	White=6     	Black=2      Inaccurate:     	White=3     	Black=1      OK:         	White=8     	Black=6      Best:        	White=1     	Black=2      Strong:       	---       	Black=1} 0-1

[Event "88th Tata Steel Masters 2026"]
[White "Erdogmus,Yagiz Kaan"]
[Black "Praggnanandhaa R"]
[Site "Wijk aan Zee"]
[Round "8.6"]
[Annotator "TA"]
[Result "1/2-1/2"]
[Date "2026.01.25"]
[WhiteElo "2658"]
[BlackElo "2758"]
[PlyCount "91"]
[TimeControl "60"]

{[%evp 9,91,18,36,35,44,18,36,43,33,46,38,34,70,74,69,39,41,0,28,37,41,2,2,4,14,14,31,48,31,5,9,3,9,0,0,0,0,0,12,12,35,23,25,28,34,27,16,33,52,27,112,22,67,11,27,14,73,53,102,104,180,146,158,106,133,72,78,61,58,26,31,25,43,0,0,0,4,0,6,4,9,8,8,9]} 1. e4 {[%emt 0:0:0]} c5 {[%emt 0:0:0]} 2. Nf3 {[%emt 0:0:0][%cal Yg1f3,Yf3e5,Ye5g4,Yg4e3][%mdl 32]} Nc6 {[%emt 0:0:0]} 3. Bb5 {[%emt 0:0:0]} e6 {[%emt 0:0:0]} 4. Bxc6 {[%emt 0:0:0]} bxc6 {[%emt 0:0:0]} 5. b3 {[%emt 0:0:0]} e5 {[%emt 0:0:0]} 6. Nxe5 {[%emt 0:0:0] B30: Sicilian: 2...Nc6 3 Bb5, lines without ...g6.} Qe7 {[%emt 0:0:0]} 7. Bb2 {[%emt 0:3:21]} f6 {[%emt 0:0:0]} 8. Ng4 $146 {[%emt 0:8:17] and 0-0 should not be overlooked. White is slightly better.} (8. Qh5+ $2 g6 9. Qh4 fxe5 $19 )({Predecessor:} 8. Nf3 Qxe4+ 9. Qe2 Qxe2+ 10. Kxe2 d5 11. Re1 Ba6+ 12. d3 Rb8 13. Kf1+ Kf7 14. Kg1 {0-1 Rodriguez Garcia,C (1866)-Diaz Camallonga,C (2144) ESP-ch U16 Salobrena 2012 (2)} )Qxe4+ {[%emt 0:0:0]} 9. Ne3 {[%emt 0:0:59]} d5 {[%emt 0:0:0]} 10. O-O {[%emt 0:3:5]} Ne7 {[%emt 0:0:0][%cal Yg8e7,Ye7g6,Yg6e5][%mdl 32]} 11. Nc3 {[%emt 0:26:4]} Qh4 {[%emt 0:0:0]} 12. Re1 {[%emt 0:22:2]} Kf7 {[%emt 0:0:0]} 13. Qf3 {[%emt 0:10:46]} Qg5 {[%emt 0:28:55]} 14. Na4 {[%emt 0:3:15]} Ng6 {[%emt 0:26:34]} 15. Qg3 {[%emt 0:2:0]} Qxg3 {[%emt 0:1:44]} 16. hxg3 {[%emt 0:0:31]} Ne5 {[%emt 0:9:15]} 17. Ba3 {[%emt 0:0:55]} c4 {[%emt 0:1:22]} 18. Bxf8 {[%emt 0:2:5]} Rxf8 {[%emt 0:0:32]} 19. f4 {[%emt 0:2:17]} Ng4 {[%emt 0:0:52]} 20. bxc4 {[%emt 0:0:53]} Nxe3 {[%emt 0:2:40]} 21. Rxe3 {[%emt 0:0:45]} dxc4 {[%emt 0:3:44]} 22. Nb2 {[%emt 0:7:41]} Be6 {[%emt 0:5:25]} 23. Rae1 {[%emt 0:1:44]} Rfe8 {[%emt 0:1:55]} 24. Rc3 {[%emt 0:2:35]} Bd5 {[%emt 0:10:12]} 25. Rxe8 {[%emt 0:2:2]} Rxe8 {[%emt 0:0:33]} 26. Nxc4 $14 {[%emt 0:2:16][%mdl 4096] Endgame KRB-KRN. White is a pawn up.} Re2 {[%emt 0:1:16]} 27. Ne3 {[%emt 0:0:33]} ({Don't play} 27. Nd6+ Ke6 28. Nc4 Rxg2+ (28... Bxg2 29. f5+ Ke7 30. Ra3 $11 )29. Kf1 g6 $11 )Rxd2 {[%emt 0:1:19]} 28. Ra3 {[%emt 0:0:35]} Kg6 {[%emt 0:2:40]} 29. Kf1 {[%emt 0:1:46]} h5 {[%emt 0:3:14]} (29... Be4 $11 )30. Rxa7 {[%emt 0:0:49]} (30. Ra4 $16 Be6 31. Rxa7 )Be4 $11 {[%emt 0:0:54][%cal Yf6f5]} 31. Ra3 {[%emt 0:2:2]} (31. Ke1 $14 Rd4 32. Kf1 )Rd7 {[%emt 0:1:47]} 32. Ra4 {[%emt 0:0:54]} Bd5 {[%emt 0:1:12]} (32... f5 $11 )33. Ke2 {[%emt 0:0:44]} Be6 {[%emt 0:2:30]} (33... Kf7 $14 )34. Ra5 $16 {[%emt 0:1:35]} Kh6 {[%emt 0:1:12]} (34... Bg4+ $16 35. Ke1 (35. Nxg4 $2 hxg4 36. a4 Rb7 $18 )Rd8 )35. a3 {[%emt 0:0:52]} Bg4+ {[%emt 0:3:58]} 36. Ke1 {[%emt 0:1:9]} ({Better is} 36. Nxg4+ hxg4 37. a4 )Rd4 {[%emt 0:1:34]} 37. Rc5 {[%emt 0:0:59]} (37. a4 $142 )Ra4 {[%emt 0:0:40]} 38. Rc3 {[%emt 0:0:42]} Bd7 {[%emt 0:0:39]} 39. Nc4 {[%emt 0:2:36]} Be6 {[%emt 0:1:39]} 40. Nb2 {[%emt 0:0:0]} Ra5 {[%emt 0:0:0]} 41. Nd3 {[%emt 0:29:17]} Bd5 {[%emt 0:24:46] The position is equal.} 42. Kf2 {[%emt 0:0:42]} Kg6 {[%emt 0:1:15]} 43. Nb4 {[%emt 0:0:50]} Be4 {[%emt 0:4:39]} 44. Nxc6 {[%emt 0:5:50]} Bxc6 {[%emt 0:0:9]} 45. Rxc6 {[%emt 0:0:6]} Rxa3 {[%emt 0:0:3]} 46. Rc5 {[%emt 0:0:26] Weighted Error Value: White=0.18 (very precise) /Black=0.15 (very precise)   Mistake:       	White=4     	Black=4      Inaccurate:     	White=6     	Black=3      OK:         	White=5     	Black=4} 1/2-1/2

[Event "88th Tata Steel Masters 2026"]
[White "Bluebaum,Matthias"]
[Black "Nguyen,Thai Dai Van"]
[Site "Wijk aan Zee"]
[Round "8.7"]
[Annotator "TA"]
[Result "1/2-1/2"]
[Date "2026.01.25"]
[WhiteElo "2679"]
[BlackElo "2656"]
[PlyCount "81"]
[TimeControl "60"]

{[%evp 12,81,23,31,13,0,0,0,0,-6,-2,0,0,2,62,50,67,54,54,44,52,48,197,204,240,250,340,327,359,346,344,204,228,228,219,233,209,218,249,275,287,254,280,285,268,219,239,235,422,0,0,0,0,0,0,0,0,-146,0,0,0,0,0,0,0,0,0,0,0,0,0,0]} 1. d4 {[%emt 0:0:0]} Nf6 {[%emt 0:0:0]} 2. c4 {[%emt 0:0:0]} e6 {[%emt 0:0:0]} 3. Nc3 {[%emt 0:0:0]} d5 {[%emt 0:0:0]} 4. cxd5 {[%emt 0:0:0]} Nxd5 {[%emt 0:0:0]} 5. e4 {[%emt 0:0:0]} Nxc3 {[%emt 0:0:0]} 6. bxc3 {[%emt 0:0:0]} c5 {[%emt 0:0:0]} 7. Rb1 {[%emt 0:0:0]} Be7 {[%emt 0:0:0] D35: Queen's Gambit Declined: Exchange Variation.} 8. Nf3 {[%emt 0:0:0]} O-O {[%emt 0:0:0]} 9. Bd3 {[%emt 0:0:0] 9.h4 is becoming the main line.} cxd4 $1 {[%emt 0:3:42]} 10. cxd4 {[%emt 0:0:0]} Nc6 {[%emt 0:0:36]} 11. Be2 $5 {[%emt 0:0:0][%mdl 4] Leaves trodden paths.} Qa5+ {[%emt 0:20:56]} 12. Bd2 {[%emt 0:2:13]} Bb4 $146 {[%emt 0:0:53] [#]} (12... Qxa2 $11 13. Ra1 Qb2 )({Predecessor:} 12... Qxa2 13. O-O Rd8 14. Bc3 Qa3 15. Qc2 Qd6 16. Rfd1 a5 17. Bd3 h6 18. e5 Qb8 {½-½ Miettinen,R-Adams,J EU-chT1 qual 2-08 corr 1973} )13. Rxb4 $1 $14 {[%emt 0:13:2]} Nxb4 {[%emt 0:0:37]} 14. Qb3 {[%emt 0:0:34] Wards off Qa3} Qxa2 {[%emt 0:1:37] A sharp opening} 15. Qxb4 {[%emt 0:2:32]} a5 {[%emt 0:25:1][%cal Ya7a5,Ya5a4,Ya4a3,Ya3a2][%mdl 32] Black is weak on the dark squares} 16. Qb6 $36 {[%emt 0:1:20][%mdl 2048] White has some pressure.} e5 {[%emt 0:21:42]} 17. Nxe5 $18 {[%emt 0:13:47]} a4 {[%emt 0:1:3]} 18. Qb4 {[%emt 0:9:2]} Qa1+ {[%emt 0:10:40]} 19. Bd1 {[%emt 0:0:32]} a3 {[%emt 0:3:54]} 20. Bc3 {[%emt 0:1:24]} Qc1 {[%emt 0:0:57]} 21. Nd3 {[%emt 0:2:29]} (21. O-O $142 )Qg5 {[%emt 0:1:50]} 22. O-O {[%emt 0:0:43]} a2 {[%emt 0:1:22] [#]} 23. Ba1 $1 {[%emt 0:5:13]} Bh3 {[%emt 0:2:36][%csl Gh3][%cal Rg5g2]} 24. Bf3 {[%emt 0:1:56]} (24. Qxb7 Qxg2# )Rfc8 {[%emt 0:2:24]} 25. d5 {[%emt 0:2:0]} (25. Qxb7 Ra3 26. Kh1 (26. Rd1 $2 Rxd3 $19 )Rxd3 27. gxh3 Qd8 $15 )b5 {[%emt 0:2:10]} 26. e5 {[%emt 0:3:38][%cal Yd5d6] Strongly threatening d6!.} (26. Qxb5 h5 27. Qb3 Rcb8 $11 )Ra4 {[%emt 0:4:47]} 27. Qxb5 {[%emt 0:1:48]} Raa8 {[%emt 0:0:34]} 28. Be4 {[%emt 0:15:4]} Rab8 {[%emt 0:1:51]} 29. Qa4 {[%emt 0:1:57]} Qg4 {[%emt 0:2:0]} (29... Bf5 30. e6 Ra8 )30. f4 $2 {[%emt 0:1:5]} ({White should try} 30. Nf4 $18 Rb1 31. f3 (31. Nxh3 Rxf1+ 32. Kxf1 Rc1+ )(31. Bxb1 axb1=R 32. Rxb1 Bxg2 $14 )(31. Rxb1 axb1=Q+ 32. Bxb1 Rc1+ )Rxf1+ 32. Kxf1 )Qe2 $1 $11 {[%emt 0:1:20]} 31. gxh3 {[%emt 0:4:26]} Rb1 {[%emt 0:0:48]} 32. Bg2 {[%emt 0:0:33]} h5 {[%emt 0:1:46]} 33. e6 {[%emt 0:13:39]} Qxd3 {[%emt 0:0:31]} 34. Qa7 {[%emt 0:2:21]} (34. Qxa2 $11 Rcc1 35. Qf2 Rxa1 36. e7 Rxf1+ 37. Bxf1 Rxf1+ 38. Qxf1 Qd4+ (38... Qe3+ 39. Kg2 $11 )39. Kg2 (39. Qf2 Qd1+ 40. Kg2 Qxd5+ 41. Kf1 Qc4+ 42. Kg1 Qe6 $11 )Qxd5+ 40. Qf3 Qd2+ 41. Qf2 (41. Kf1 Qc1+ 42. Kg2 Qd2+ 43. Qf2 Qd5+ 44. Kf1 Qe4 $11 )Qd5+ 42. Kf1 Qc4+ 43. Kg1 )Rxa1 {[%emt 0:1:5]} 35. Rxa1 {[%emt 0:13:31] The position is equal.} Qb1+ {[%emt 0:0:31]} 36. Bf1 {[%emt 0:0:37]} Qxa1 {[%emt 0:0:31]} 37. Qxf7+ {[%emt 0:1:3]} Kh8 {[%emt 0:0:35]} 38. Qxh5+ {[%emt 0:0:35]} Kg8 {[%emt 0:0:31]} 39. Qf7+ {[%emt 0:0:38]} Kh8 {[%emt 0:0:30] ( -> ...Qd4+)} (39... Kh7 $5 40. Qh5+ $8 Kg8 41. Qf7+ Kh7 $11 )40. Qh5+ {[%emt 0:0:0]} Kg8 {[%emt 0:0:0]} 41. Qf7+ {[%emt 0:20:16] Blacks defense is rewarded with a draw.   Weighted Error Value: White=0.39/Black=0.35   Missed win:     	White=1     	---        Mistake:       	White=2     	Black=4      Inaccurate:     	---       	Black=1      OK:         	White=11    	Black=7      Best:        	White=5     	Black=3      Strong:       	---       	Black=2} 1/2-1/2

[Event "88th Tata Steel Masters 2026"]
[White "Gukesh D"]
[Black "Bluebaum,Matthias"]
[Site "Wijk aan Zee"]
[Round "9.1"]
[Annotator "TA"]
[Result "0-1"]
[Date "2026.01.27"]
[WhiteElo "2754"]
[BlackElo "2679"]
[PlyCount "74"]
[TimeControl "60"]

{[%evp 10,73,10,11,12,15,16,18,11,18,36,10,34,0,12,2,25,-7,-18,-16,-19,-13,-4,-14,-6,-18,-15,-14,-7,-35,-35,-46,-36,-65,-83,-92,-75,-121,-121,-121,-122,-125,-74,-87,-79,-176,-183,-167,-175,-332,-314,-332,-302,-317,-324,-326,-256,-244,-234,-256,-200,-228,-237,-644,-611,-5329]} 1. e4 {[%emt 0:0:0]} e5 {[%emt 0:0:0]} 2. Bc4 {[%emt 0:0:0]} Nf6 {[%emt 0:0:0]} 3. d3 {[%emt 0:0:0]} c6 {[%emt 0:0:0]} 4. Nf3 {[%emt 0:0:0]} d5 {[%emt 0:0:0]} 5. Bb3 {[%emt 0:0:0]} Bb4+ {[%emt 0:0:0]} 6. c3 {[%emt 0:0:0]} Bd6 {[%emt 0:0:0] C24: Bishop's Opening: 2...Nf6.} 7. exd5 {[%emt 0:0:0]} cxd5 {[%emt 0:0:0]} 8. O-O {[%emt 0:0:0]} O-O {[%emt 0:0:0] The position is equal.} 9. Bg5 {[%emt 0:0:0][%cal Yb3d5]} Be6 {[%emt 0:0:0]} 10. c4 {[%emt 0:0:0]} d4 {[%emt 0:0:0]} 11. Nbd2 {[%emt 0:0:0]} Nbd7 {[%emt 0:0:0]} 12. Re1 {[%emt 0:0:0]} Bf5 $146 {[%emt 0:4:43]} ({Predecessor:} 12... Qc7 13. a3 Nc5 14. Bxf6 gxf6 15. Bc2 Bg4 16. h3 Bh5 17. b4 Ne6 18. Ne4 Be7 {½-½ Martin Martin,O (2463)-Lyukmanov,V (2434) W-ch43 sf07 email 2019} )13. Ne4 {[%emt 0:6:43]} Bxe4 {[%emt 0:6:22]} 14. Rxe4 {[%emt 0:0:35]} h6 {[%emt 0:0:49]} 15. Bxf6 {[%emt 0:0:49]} Qxf6 {[%emt 0:1:20]} 16. Re1 {[%emt 0:8:13] White is weak on the dark squares} Nc5 {[%emt 0:9:36]} 17. Bc2 {[%emt 0:2:39]} a5 {[%emt 0:1:0]} 18. Nd2 {[%emt 0:2:1]} Bc7 {[%emt 0:8:29]} 19. b3 {[%emt 0:3:39]} Qd6 {[%emt 0:4:54][%cal Ye5e4]} 20. Qh5 {[%emt 0:18:37]} f5 {[%emt 0:4:12]} 21. Rad1 {[%emt 0:8:37]} Rae8 {[%emt 0:5:50] Black has space advantage and is better Black is more active.} 22. Nf3 {[%emt 0:4:47]} Qf6 {[%emt 0:7:59]} 23. a3 {[%emt 0:14:4] [#]} ({White should try} 23. g3 )Ne6 $1 $17 {[%emt 0:7:11]} 24. Nd2 {[%emt 0:0:36]} Bd6 {[%emt 0:9:16]} 25. Qf3 {[%emt 0:2:40]} Rf7 {[%emt 0:1:12]} (25... Kh8 $142 26. Qxb7 Bxa3 )26. c5 {[%emt 0:15:48]} Bxc5 {[%emt 0:9:2][%cal Yf7c7]} 27. Nc4 {[%emt 0:0:43]} (27. Qd5 $17 )e4 $19 {[%emt 0:2:40]} 28. dxe4 {[%emt 0:1:37] [#]} Ng5 $1 {[%emt 0:0:35]} 29. Qxf5 {[%emt 0:8:40]} (29. Qf4 {only move.} fxe4 30. Qxf6 Rxf6 31. b4 axb4 32. axb4 Bxb4 33. Re2 )Qe7 $1 {[%emt 0:0:47][%csl Ya3,Yf5]} 30. Qg6 {[%emt 0:3:18]} d3 {[%emt 0:1:28]} 31. Bxd3 {[%emt 0:0:32]} Bxf2+ {[%emt 0:1:22]} 32. Kh1 {[%emt 0:0:33]} Rf6 {[%emt 0:4:12] Prevents Nd6.} 33. Qh5 {[%emt 0:0:34]} Bxe1 {[%emt 0:0:36]} 34. Rxe1 {[%emt 0:0:41]} b5 $40 {[%emt 0:2:23][%mdl 128] Black is out for blood.} 35. Nxa5 {[%emt 0:4:49]} Ref8 {[%emt 0:4:12]} 36. h4 $2 {[%emt 0:2:58] [#]} (36. Qd1 )Qe5 $1 {[%emt 0:4:7]} 37. Rg1 {[%emt 0:3:25]} (37. hxg5 hxg5 )Qg3 {[%emt 0:1:34] Weighted Error Value: White=0.54/Black=0.08 (flawless)   Mistake:       	White=4     	Black=1      Inaccurate:     	White=4     	---        OK:         	White=7     	Black=8      Best:        	White=2     	Black=2      Strong:       	---       	Black=2} 0-1

[Event "88th Tata Steel Masters 2026"]
[White "Nguyen,Thai Dai Van"]
[Black "Erdogmus,Yagiz Kaan"]
[Site "Wijk aan Zee"]
[Round "9.2"]
[Annotator "TA"]
[Result "0-1"]
[Date "2026.01.27"]
[WhiteElo "2656"]
[BlackElo "2658"]
[PlyCount "72"]
[TimeControl "60"]

{[%evp 16,72,30,25,36,33,43,26,34,5,6,14,10,8,0,0,7,0,0,5,2,0,0,-17,-19,-24,-9,-8,-8,-49,-31,-39,-32,-67,-43,-49,-12,-15,-9,-35,-30,-46,-14,-93,-21,-50,-37,-300,-318,-391,-385,-374,-384,-533,-534,-502,-418,-400,-400]} 1. e4 {[%emt 0:0:0]} e5 {[%emt 0:0:0]} 2. Nf3 {[%emt 0:0:0]} Nc6 {[%emt 0:0:0]} 3. Bb5 {[%emt 0:0:0]} a6 {[%emt 0:0:0]} 4. Ba4 {[%emt 0:0:0]} Nf6 {[%emt 0:0:0]} 5. d3 {[%emt 0:0:0]} d6 {[%emt 0:0:0]} 6. c3 {[%emt 0:0:0]} g6 {[%emt 0:0:0]} 7. O-O {[%emt 0:0:0]} Bg7 {[%emt 0:0:0]} 8. Re1 {[%emt 0:0:0]} O-O {[%emt 0:0:15]} 9. h3 {[%emt 0:0:0]} b5 {[%emt 0:10:27] C77: Ruy Lopez: 3...a6 4 Ba4 Nf6, unusual lines.} 10. Bc2 {[%emt 0:0:0]} Bb7 {[%emt 0:8:3]} 11. Be3 {[%emt 0:0:0] outshines the older 11.a4.} Nb8 {[%emt 0:8:30][%cal Yc6b8,Yb8d7,Yd7c5][%mdl 32] White has an edge.} 12. Nbd2 {[%emt 0:21:25]} c5 {[%emt 0:3:0]} 13. a4 $146 {[%emt 0:12:45]} ({Predecessor:} 13. d4 cxd4 14. cxd4 exd4 15. Nxd4 Re8 16. a4 b4 17. N4b3 d5 18. Bc5 Nc6 19. a5 Nxe4 {0-1 Saltaev,M (2482)-Amin,B (2683) Bundesliga 2122 2022 (9.4)} )Nbd7 {[%emt 0:24:25]} 14. d4 {[%emt 0:20:42]} exd4 {[%emt 0:18:11]} 15. cxd4 {[%emt 0:0:0]} cxd4 {[%emt 0:8:17]} 16. Bxd4 {[%emt 0:0:0]} Nc5 {[%emt 0:2:0]} 17. axb5 {[%emt 0:20:37]} axb5 {[%emt 0:0:31]} 18. Qe2 {[%emt 0:10:14]} Ne6 {[%emt 0:7:31]} 19. Qxb5 {[%emt 0:7:30]} Nxd4 {[%emt 0:2:31]} 20. Nxd4 {[%emt 0:0:32]} Rb8 {[%emt 0:1:57][%cal Yf6e4]} 21. Qd3 {[%emt 0:0:32]} Nd7 {[%emt 0:1:0]} 22. N2b3 {[%emt 0:8:47]} Qb6 {[%emt 0:3:2][%mdl 1024] Black has compensation.} 23. Red1 {[%emt 0:2:58]} Rfc8 {[%emt 0:1:20]} 24. Qd2 {[%emt 0:1:44]} Rc4 {[%emt 0:1:26]} 25. Ne2 $1 {[%emt 0:2:56]} Rbc8 {[%emt 0:2:53] Strong Rooks Black (c4+c8)} 26. Nc3 $1 {[%emt 0:0:43]} Be5 {[%emt 0:2:33]} 27. Qe2 {[%emt 0:1:11]} Rb4 {[%emt 0:0:46]} 28. Ra3 {[%emt 0:0:48]} Nf6 {[%emt 0:1:13]} 29. Qd2 {[%emt 0:0:47]} (29. Nd2 $1 $11 {keeps the balance.} )Ba6 {[%emt 0:1:37] Black is much more active.} (29... Nxe4 $17 30. Bxe4 Bxe4 31. Nxe4 Rxe4 )30. Rda1 {[%emt 0:0:33]} (30. Kh1 {simplifies} Bc4 31. f4 Bxb3 32. fxe5 dxe5 33. Bxb3 Rxb3 34. Rxb3 Qxb3 35. Rf1 )Bc4 $36 {[%emt 0:0:35][%mdl 2048] White is under pressure.} 31. Na5 {[%emt 0:0:32][%mdl 8192] [#] This costs White the game.} ({White should try} 31. Ra8 $15 Rxa8 32. Rxa8+ Kg7 33. Na4 (33. Na5 Be6 $19 ))Rxb2 $19 {[%emt 0:1:51]} 32. Na4 {[%emt 0:0:31]} Qb4 {[%emt 0:1:6]} 33. Qxb4 {[%emt 0:0:41]} Rxb4 {[%emt 0:0:31]} 34. Rb1 {[%emt 0:0:38] White is weak on the dark squares} Rxb1+ 35. Bxb1 {[%emt 0:0:31] [#] aiming for Nb6.} Bb5 {[%emt 0:1:28] A strong pair of Bishops.} 36. Nb3 {[%emt 0:0:37] Inhibits Rc1+.} Ra8 {[%emt 0:0:30] Weighted Error Value: White=0.34/Black=0.13 (very precise)   Loses game:     	White=1     	---        Mistake:       	White=1     	Black=1      Inaccurate:     	White=6     	Black=2      OK:         	White=3     	Black=7      Strong:       	White=2     	---} 0-1